[Event "Titled Tuesday Blitz March 07 Early 2023"]
[White "Corrales Jimenez, Fidel"]
[Black "Lazavik, Denis"]
[WhiteFideId "3506690"]
[BlackFideId "13515110"]
[WhiteElo "2541"]
[BlackElo "2560"]
[Result "1-0"]
[Round "04"]
[TimeControl "180+2"]
[Date "2023.03.07"]
[WhiteClock "0:01:02"]
[BlackClock "0:00:02"]

1. d4 {[%clk 0:03:00]}  Nf6 {[%clk 0:02:59]} 2. Nf3 {[%clk 0:03:00]}  d5 {[%clk 0:02:55]} 3. Bf4 {[%clk 0:02:57]}  c5 {[%clk 0:02:55]} 4. e3 {[%clk 0:02:57]}  Nc6 {[%clk 0:02:56]} 5. c3 {[%clk 0:02:57]}  Bg4 {[%clk 0:02:52]} 6. Nbd2 {[%clk 0:02:57]}  e6 {[%clk 0:02:52]} 7. Be2 {[%clk 0:02:57]}  Bd6 {[%clk 0:02:44]} 8. Bxd6 {[%clk 0:02:55]}  Qxd6 {[%clk 0:02:44]} 9. O-O {[%clk 0:02:55]}  O-O {[%clk 0:02:44]} 10. h3 {[%clk 0:02:51]}  Bh5 {[%clk 0:02:43]} 11. Rc1 {[%clk 0:02:48]}  Rfd8 {[%clk 0:02:40]} 12. Qa4 {[%clk 0:02:48]}  Rac8 {[%clk 0:02:36]} 13. Rfd1 {[%clk 0:02:48]}  Qe7 {[%clk 0:02:27]} 14. a3 {[%clk 0:02:33]}  Ne4 {[%clk 0:02:21]} 15. dxc5 {[%clk 0:02:24]}  Nxc5 {[%clk 0:02:20]} 16. Qf4 {[%clk 0:02:18]}  e5 {[%clk 0:02:13]} 17. Qg3 {[%clk 0:02:16]}  e4 {[%clk 0:02:09]} 18. Nd4 {[%clk 0:02:16]}  Bxe2 {[%clk 0:01:28]} 19. Nxe2 {[%clk 0:02:17]}  Nd3 {[%clk 0:01:28]} 20. Rb1 {[%clk 0:02:17]}  Rd6 {[%clk 0:01:28]} 21. Nf4 {[%clk 0:02:16]}  Nce5 {[%clk 0:01:27]} 22. Nb3 {[%clk 0:02:14]}  Nxf4 {[%clk 0:01:08]} 23. exf4 {[%clk 0:02:14]}  Rg6 {[%clk 0:01:03]} 24. Qe3 {[%clk 0:02:13]}  Nc4 {[%clk 0:01:03]} 25. Qe2 {[%clk 0:02:12]}  Qh4 {[%clk 0:00:54]} 26. Rxd5 {[%clk 0:02:07]}  Qxh3 {[%clk 0:00:45]} 27. Qxe4 {[%clk 0:02:04]}  Qh4 {[%clk 0:00:32]} 28. Re1 {[%clk 0:01:56]}  h6 {[%clk 0:00:31]} 29. f5 {[%clk 0:01:56]}  Rg4 {[%clk 0:00:30]} 30. Qf3 {[%clk 0:01:46]}  Rf4 {[%clk 0:00:29]} 31. Qg3 {[%clk 0:01:42]}  Qxg3 {[%clk 0:00:26]} 32. fxg3 {[%clk 0:01:43]}  Rg4 {[%clk 0:00:27]} 33. Re2 {[%clk 0:01:37]}  Rxg3 {[%clk 0:00:26]} 34. Rd7 {[%clk 0:01:37]}  b6 {[%clk 0:00:19]} 35. Nd4 {[%clk 0:01:38]}  a5 {[%clk 0:00:17]} 36. Nf3 {[%clk 0:01:36]}  Rg4 {[%clk 0:00:16]} 37. Kf2 {[%clk 0:01:35]}  Rf4 {[%clk 0:00:16]} 38. Rd5 {[%clk 0:01:34]}  Rc5 {[%clk 0:00:13]} 39. Rd8+ {[%clk 0:01:10]}  Kh7 {[%clk 0:00:12]} 40. Kg3 {[%clk 0:01:11]}  Rfxf5 {[%clk 0:00:12]} 41. Ree8 {[%clk 0:01:10]}  g5 {[%clk 0:00:07]} 42. Nd4 {[%clk 0:01:05]}  Rfe5 {[%clk 0:00:05]} 43. Rh8+ {[%clk 0:01:05]}  Kg7 {[%clk 0:00:06]} 44. Rdg8+ {[%clk 0:01:06]}  Kf6 {[%clk 0:00:06]} 45. Rxh6+ {[%clk 0:01:05]}  Ke7 {[%clk 0:00:07]} 46. Ra8 {[%clk 0:01:05]}  Red5 {[%clk 0:00:02]} 47. Nc6+ {[%clk 0:01:02]}  Kd7 {[%clk 0:00:02]} 48. Ra7+ {[%clk 0:01:02]}  Kc8 {[%clk 0:00:02]} 49. Rh8+ {[%clk 0:01:02]} 1-0


[Site "https://www.chess.com"]

[Event "Titled Tuesday Blitz March 07 Early 2023"]
[White "Hakobyan, Aram"]
[Black "Krzyzanowski, Marcin"]
[WhiteFideId "13306677"]
[BlackFideId "1132199"]
[WhiteElo "2563"]
[BlackElo "2471"]
[Result "1-0"]
[Round "04"]
[TimeControl "180+2"]
[Date "2023.03.07"]
[WhiteClock "0:01:26"]
[BlackClock "0:00:03"]

1. e4 {[%clk 0:03:00]}  c5 {[%clk 0:02:59]} 2. Nf3 {[%clk 0:03:00]}  Nc6 {[%clk 0:02:59]} 3. Nc3 {[%clk 0:02:59]}  e5 {[%clk 0:02:59]} 4. Bc4 {[%clk 0:02:58]}  h6 {[%clk 0:02:58]} 5. Nd5 {[%clk 0:02:57]}  d6 {[%clk 0:02:53]} 6. c3 {[%clk 0:02:57]}  g6 {[%clk 0:02:40]} 7. d4 {[%clk 0:02:55]}  exd4 {[%clk 0:02:38]} 8. cxd4 {[%clk 0:02:55]}  cxd4 {[%clk 0:02:31]} 9. Nxd4 {[%clk 0:02:51]}  Bg7 {[%clk 0:02:29]} 10. Nb5 {[%clk 0:02:49]}  Kf8 {[%clk 0:02:19]} 11. O-O {[%clk 0:02:48]}  a6 {[%clk 0:02:13]} 12. Nbc3 {[%clk 0:02:41]}  Nf6 {[%clk 0:02:02]} 13. Bf4 {[%clk 0:02:38]}  Nh5 {[%clk 0:01:56]} 14. Be3 {[%clk 0:02:38]}  b5 {[%clk 0:01:51]} 15. Bb3 {[%clk 0:02:37]}  Rb8 {[%clk 0:01:46]} 16. f4 {[%clk 0:02:36]}  Na5 {[%clk 0:01:41]} 17. f5 {[%clk 0:02:27]}  Nxb3 {[%clk 0:01:22]} 18. axb3 {[%clk 0:02:27]}  Nf6 {[%clk 0:00:39]} 19. fxg6 {[%clk 0:02:24]}  Be6 {[%clk 0:00:39]} 20. Bd4 {[%clk 0:02:21]}  Ng4 {[%clk 0:00:34]} 21. Bxg7+ {[%clk 0:01:47]}  Kxg7 {[%clk 0:00:35]} 22. Qd4+ {[%clk 0:01:47]}  Ne5 {[%clk 0:00:23]} 23. gxf7 {[%clk 0:01:47]}  Bxf7 {[%clk 0:00:22]} 24. Rf5 {[%clk 0:01:43]}  Be6 {[%clk 0:00:17]} 25. Rxe5 {[%clk 0:01:41]}  dxe5 {[%clk 0:00:10]} 26. Qxe5+ {[%clk 0:01:42]}  Kh7 {[%clk 0:00:07]} 27. Qxe6 {[%clk 0:01:42]}  Rf8 {[%clk 0:00:07]} 28. Rxa6 {[%clk 0:01:31]}  Qh4 {[%clk 0:00:07]} 29. Ra7+ {[%clk 0:01:26]}  Kh8 {[%clk 0:00:04]} 30. Qe5+ {[%clk 0:01:26]}  Rf6 {[%clk 0:00:03]} 31. Qxf6+ {[%clk 0:01:25]}  Qxf6 {[%clk 0:00:03]} 32. Nxf6 {[%clk 0:01:26]} 1-0


[Site "https://www.chess.com"]

[Event "Titled Tuesday Blitz March 07 Early 2023"]
[White "Fedoseev, Vladimir"]
[Black "Lorparizangeneh, Shahin"]
[WhiteFideId "24130737"]
[BlackFideId "12521604"]
[WhiteElo "2752"]
[BlackElo "2526"]
[Result "1-0"]
[Round "04"]
[TimeControl "180+2"]
[Date "2023.03.07"]
[WhiteClock "0:01:08"]
[BlackClock "0:01:14"]

1. e4 {[%clk 0:02:35]}  e5 {[%clk 0:02:57]} 2. Nf3 {[%clk 0:02:35]}  Nc6 {[%clk 0:02:58]} 3. Bb5 {[%clk 0:02:34]}  a6 {[%clk 0:02:58]} 4. Ba4 {[%clk 0:02:34]}  Nf6 {[%clk 0:02:58]} 5. O-O {[%clk 0:02:34]}  Be7 {[%clk 0:02:58]} 6. d3 {[%clk 0:02:34]}  b5 {[%clk 0:02:56]} 7. Bb3 {[%clk 0:02:35]}  d6 {[%clk 0:02:56]} 8. c3 {[%clk 0:02:28]}  O-O {[%clk 0:02:55]} 9. Bc2 {[%clk 0:02:29]}  Re8 {[%clk 0:02:52]} 10. d4 {[%clk 0:02:25]}  Bf8 {[%clk 0:02:49]} 11. Nbd2 {[%clk 0:02:21]}  Bg4 {[%clk 0:02:47]} 12. h3 {[%clk 0:02:18]}  Bh5 {[%clk 0:02:47]} 13. d5 {[%clk 0:02:16]}  Ne7 {[%clk 0:02:46]} 14. b3 {[%clk 0:02:17]}  c6 {[%clk 0:02:42]} 15. c4 {[%clk 0:02:17]}  bxc4 {[%clk 0:02:29]} 16. bxc4 {[%clk 0:02:17]}  Nd7 {[%clk 0:02:25]} 17. Re1 {[%clk 0:02:13]}  Nc5 {[%clk 0:02:19]} 18. Ba3 {[%clk 0:02:13]}  Qa5 {[%clk 0:02:13]} 19. Re3 {[%clk 0:02:13]}  Bxf3 {[%clk 0:02:05]} 20. Nxf3 {[%clk 0:02:10]}  cxd5 {[%clk 0:02:04]} 21. cxd5 {[%clk 0:02:03]}  g6 {[%clk 0:02:03]} 22. Nd2 {[%clk 0:01:59]}  Nc8 {[%clk 0:01:49]} 23. Nc4 {[%clk 0:01:57]}  Qc7 {[%clk 0:01:50]} 24. Rc3 {[%clk 0:01:54]}  Nb6 {[%clk 0:01:43]} 25. Nxb6 {[%clk 0:01:46]}  Qxb6 {[%clk 0:01:44]} 26. Rb1 {[%clk 0:01:46]}  Qa5 {[%clk 0:01:37]} 27. Bb4 {[%clk 0:01:45]}  Qxa2 {[%clk 0:01:14]} 28. Ba3 {[%clk 0:01:08]} 1-0


[Site "https://www.chess.com"]

[Event "Titled Tuesday Blitz March 07 Early 2023"]
[White "Atakhan, Abtin"]
[Black "Bortnyk, Olexandr"]
[WhiteFideId "22502203"]
[BlackFideId "14120828"]
[WhiteElo "2008"]
[BlackElo "2734"]
[Result "0-1"]
[Round "04"]
[TimeControl "180+2"]
[Date "2023.03.07"]
[WhiteClock "0:00:04"]
[BlackClock "0:00:36"]

1. c4 {[%clk 0:03:00]}  d6 {[%clk 0:02:49]} 2. Nc3 {[%clk 0:03:00]}  e5 {[%clk 0:02:46]} 3. Nf3 {[%clk 0:03:01]}  Nc6 {[%clk 0:02:42]} 4. d4 {[%clk 0:02:53]}  Bg4 {[%clk 0:02:36]} 5. e3 {[%clk 0:02:37]}  exd4 {[%clk 0:02:30]} 6. exd4 {[%clk 0:02:36]}  Bxf3 {[%clk 0:02:27]} 7. Qxf3 {[%clk 0:02:32]}  Nxd4 {[%clk 0:02:27]} 8. Qxb7 {[%clk 0:02:29]}  Rb8 {[%clk 0:01:57]} 9. Qe4+ {[%clk 0:02:24]}  Qe7 {[%clk 0:01:58]} 10. Bd3 {[%clk 0:02:17]}  Nf6 {[%clk 0:01:57]} 11. Qxe7+ {[%clk 0:02:10]}  Bxe7 {[%clk 0:01:58]} 12. Be3 {[%clk 0:02:09]}  c5 {[%clk 0:01:51]} 13. b3 {[%clk 0:01:54]}  Nc6 {[%clk 0:01:47]} 14. h3 {[%clk 0:01:45]}  O-O {[%clk 0:01:43]} 15. O-O {[%clk 0:01:45]}  Rfd8 {[%clk 0:01:40]} 16. Rfe1 {[%clk 0:01:40]}  Nb4 {[%clk 0:01:39]} 17. Rad1 {[%clk 0:01:36]}  Nd7 {[%clk 0:01:33]} 18. Bf5 {[%clk 0:01:23]}  Ne5 {[%clk 0:01:32]} 19. Bc1 {[%clk 0:01:08]}  Bf6 {[%clk 0:01:22]} 20. Re3 {[%clk 0:00:34]}  Bg5 {[%clk 0:01:18]} 21. Re2 {[%clk 0:00:25]}  Bxc1 {[%clk 0:01:17]} 22. Rxc1 {[%clk 0:00:26]}  Nec6 {[%clk 0:01:16]} 23. Rd2 {[%clk 0:00:21]}  Nd4 {[%clk 0:01:14]} 24. Be4 {[%clk 0:00:20]}  Re8 {[%clk 0:01:14]} 25. Rcd1 {[%clk 0:00:19]}  a5 {[%clk 0:01:02]} 26. f3 {[%clk 0:00:15]}  g6 {[%clk 0:01:02]} 27. Kf2 {[%clk 0:00:15]}  Kg7 {[%clk 0:00:59]} 28. Nb5 {[%clk 0:00:07]}  Nxb5 {[%clk 0:00:50]} 29. cxb5 {[%clk 0:00:08]}  Rxb5 {[%clk 0:00:51]} 30. Rxd6 {[%clk 0:00:09]}  Re7 {[%clk 0:00:41]} 31. Bb1 {[%clk 0:00:08]}  Rc7 {[%clk 0:00:37]} 32. a3 {[%clk 0:00:09]}  Nc6 {[%clk 0:00:37]} 33. Bd3 {[%clk 0:00:02]}  Rxb3 {[%clk 0:00:36]} 34. Bc4 {[%clk 0:00:03]}  Rxa3 {[%clk 0:00:34]} 35. Rd7 {[%clk 0:00:03]}  Rxd7 {[%clk 0:00:35]} 36. Rxd7 {[%clk 0:00:04]}  Ne5 {[%clk 0:00:36]} 37. Bd5 {[%clk 0:00:04]} 0-1


[Site "https://www.chess.com"]

[Event "Titled Tuesday Blitz March 07 Early 2023"]
[White "Oparin, Grigoriy"]
[Black "Weetik, Vjacheslav"]
[WhiteFideId "24125890"]
[BlackFideId "4153472"]
[WhiteElo "2641"]
[BlackElo "2469"]
[Result "1-0"]
[Round "04"]
[TimeControl "180+2"]
[Date "2023.03.07"]
[WhiteClock "0:00:05"]
[BlackClock "0:00:01"]

1. g3 {[%clk 0:02:57]}  e5 {[%clk 0:02:59]} 2. c4 {[%clk 0:02:56]}  c6 {[%clk 0:02:53]} 3. d4 {[%clk 0:02:56]}  exd4 {[%clk 0:02:51]} 4. Qxd4 {[%clk 0:02:55]}  d5 {[%clk 0:02:52]} 5. Bg2 {[%clk 0:02:50]}  Nf6 {[%clk 0:02:51]} 6. cxd5 {[%clk 0:02:48]}  cxd5 {[%clk 0:02:51]} 7. Nf3 {[%clk 0:02:48]}  Nc6 {[%clk 0:02:51]} 8. Qd1 {[%clk 0:02:49]}  Bc5 {[%clk 0:02:44]} 9. O-O {[%clk 0:02:48]}  O-O {[%clk 0:02:43]} 10. Nc3 {[%clk 0:02:49]}  h6 {[%clk 0:02:36]} 11. Na4 {[%clk 0:02:47]}  Bd6 {[%clk 0:02:30]} 12. Be3 {[%clk 0:02:47]}  Re8 {[%clk 0:02:29]} 13. Bc5 {[%clk 0:02:42]}  Bc7 {[%clk 0:02:25]} 14. Rc1 {[%clk 0:02:42]}  Bg4 {[%clk 0:02:15]} 15. Bd4 {[%clk 0:02:34]}  Ne4 {[%clk 0:02:11]} 16. h3 {[%clk 0:02:26]}  Bh5 {[%clk 0:02:06]} 17. Nc5 {[%clk 0:02:06]}  Nxd4 {[%clk 0:01:31]} 18. Nxd4 {[%clk 0:02:07]}  Bb6 {[%clk 0:01:30]} 19. b4 {[%clk 0:01:49]}  Qf6 {[%clk 0:01:29]} 20. g4 {[%clk 0:01:40]}  Bg6 {[%clk 0:01:26]} 21. e3 {[%clk 0:01:40]}  Qe7 {[%clk 0:01:11]} 22. Qb3 {[%clk 0:01:30]}  Nd2 {[%clk 0:01:01]} 23. Qxd5 {[%clk 0:01:30]}  Nxf1 {[%clk 0:01:01]} 24. Rxf1 {[%clk 0:01:31]}  Rab8 {[%clk 0:00:53]} 25. Rc1 {[%clk 0:01:23]}  Kh7 {[%clk 0:00:34]} 26. Nf5 {[%clk 0:01:15]}  Qf6 {[%clk 0:00:31]} 27. Nd4 {[%clk 0:00:52]}  Rbd8 {[%clk 0:00:24]} 28. Qxb7 {[%clk 0:00:50]}  Rxd4 {[%clk 0:00:24]} 29. exd4 {[%clk 0:00:50]}  Qxd4 {[%clk 0:00:24]} 30. Qd7 {[%clk 0:00:39]}  Qf4 {[%clk 0:00:11]} 31. Rd1 {[%clk 0:00:14]}  Re2 {[%clk 0:00:11]} 32. Qd4 {[%clk 0:00:14]}  Re1+ {[%clk 0:00:10]} 33. Bf1 {[%clk 0:00:11]}  Qxd4 {[%clk 0:00:04]} 34. Rxd4 {[%clk 0:00:11]}  Rc1 {[%clk 0:00:03]} 35. a4 {[%clk 0:00:05]}  Bxc5 {[%clk 0:00:03]} 36. bxc5 {[%clk 0:00:06]}  Rxc5 {[%clk 0:00:03]} 37. Bb5 {[%clk 0:00:06]}  Bc2 {[%clk 0:00:02]} 38. Kg2 {[%clk 0:00:06]}  a6 {[%clk 0:00:02]} 39. Bxa6 {[%clk 0:00:05]}  Rc3 {[%clk 0:00:01]} 40. Bb5 {[%clk 0:00:05]} 1-0


[Site "https://www.chess.com"]

[Event "Titled Tuesday Blitz March 07 Early 2023"]
[White "Shimanov, Aleksandr"]
[Black "Martynov, Pavel"]
[WhiteFideId "4198603"]
[BlackFideId "4101260"]
[WhiteElo "2631"]
[BlackElo "2314"]
[Result "1-0"]
[Round "04"]
[TimeControl "180+2"]
[Date "2023.03.07"]
[WhiteClock "0:00:45"]
[BlackClock "0:00:35"]

1. e4 {[%clk 0:03:00]}  c5 {[%clk 0:02:59]} 2. d4 {[%clk 0:02:58]}  cxd4 {[%clk 0:02:59]} 3. Qxd4 {[%clk 0:02:59]}  e6 {[%clk 0:02:57]} 4. Nf3 {[%clk 0:02:54]}  Nc6 {[%clk 0:02:57]} 5. Qd1 {[%clk 0:02:51]}  a6 {[%clk 0:02:52]} 6. Bd3 {[%clk 0:02:51]}  Qc7 {[%clk 0:02:52]} 7. O-O {[%clk 0:02:51]}  Nf6 {[%clk 0:02:51]} 8. c4 {[%clk 0:02:51]}  Be7 {[%clk 0:02:47]} 9. Nc3 {[%clk 0:02:50]}  d6 {[%clk 0:02:40]} 10. b3 {[%clk 0:02:47]}  O-O {[%clk 0:02:36]} 11. Bb2 {[%clk 0:02:46]}  Ne5 {[%clk 0:02:29]} 12. Rc1 {[%clk 0:02:44]}  b6 {[%clk 0:02:28]} 13. Bb1 {[%clk 0:02:40]}  Bb7 {[%clk 0:02:26]} 14. Nd4 {[%clk 0:02:39]}  Rfd8 {[%clk 0:02:19]} 15. Kh1 {[%clk 0:02:38]}  Rac8 {[%clk 0:02:16]} 16. f4 {[%clk 0:02:37]}  Ned7 {[%clk 0:02:17]} 17. Qe2 {[%clk 0:02:34]}  Qb8 {[%clk 0:02:07]} 18. f5 {[%clk 0:02:32]}  Nf8 {[%clk 0:01:53]} 19. fxe6 {[%clk 0:02:24]}  fxe6 {[%clk 0:01:52]} 20. Nd5 {[%clk 0:02:23]}  exd5 {[%clk 0:01:43]} 21. exd5 {[%clk 0:02:24]}  Re8 {[%clk 0:01:30]} 22. Nf5 {[%clk 0:02:22]}  Qc7 {[%clk 0:01:23]} 23. Rce1 {[%clk 0:02:04]}  Ng6 {[%clk 0:01:21]} 24. Qe6+ {[%clk 0:02:03]}  Kh8 {[%clk 0:01:20]} 25. Nxg7 {[%clk 0:00:59]}  Kxg7 {[%clk 0:01:20]} 26. Bxg6 {[%clk 0:00:47]}  hxg6 {[%clk 0:00:58]} 27. Rxf6 {[%clk 0:00:46]}  Bxf6 {[%clk 0:00:40]} 28. Qxf6+ {[%clk 0:00:46]}  Kh7 {[%clk 0:00:35]} 29. Qh4+ {[%clk 0:00:45]}  Kg8 {[%clk 0:00:35]} 30. Qh8+ {[%clk 0:00:45]}  Kf7 {[%clk 0:00:35]} 31. Qg7# {[%clk 0:00:45]} 1-0


[Site "https://www.chess.com"]

[Event "Titled Tuesday Blitz March 07 Early 2023"]
[White "Narayanan.S.L"]
[Black "Ilinca Ilinca, Felix Antonio"]
[WhiteFideId "5058422"]
[BlackFideId "54764998"]
[WhiteElo "2547"]
[BlackElo "2031"]
[Result "1-0"]
[Round "04"]
[TimeControl "180+2"]
[Date "2023.03.07"]
[WhiteClock "0:01:55"]
[BlackClock "0:00:16"]

1. e3 {[%clk 0:02:56]}  Nf6 {[%clk 0:02:55]} 2. b3 {[%clk 0:02:55]}  e5 {[%clk 0:02:42]} 3. Bb2 {[%clk 0:02:53]}  d6 {[%clk 0:02:41]} 4. c4 {[%clk 0:02:50]}  Be7 {[%clk 0:02:38]} 5. Nc3 {[%clk 0:02:51]}  O-O {[%clk 0:02:34]} 6. g3 {[%clk 0:02:51]}  d5 {[%clk 0:02:29]} 7. cxd5 {[%clk 0:02:49]}  Nxd5 {[%clk 0:02:29]} 8. a3 {[%clk 0:02:50]}  Nxc3 {[%clk 0:02:22]} 9. Bxc3 {[%clk 0:02:48]}  Qd5 {[%clk 0:02:22]} 10. Nf3 {[%clk 0:02:30]}  Bg4 {[%clk 0:02:22]} 11. Be2 {[%clk 0:02:30]}  e4 {[%clk 0:02:15]} 12. Nd4 {[%clk 0:02:30]}  Bxe2 {[%clk 0:02:15]} 13. Nxe2 {[%clk 0:02:28]}  Bd6 {[%clk 0:02:10]} 14. O-O {[%clk 0:02:27]}  Nc6 {[%clk 0:02:08]} 15. Nf4 {[%clk 0:02:24]}  Bxf4 {[%clk 0:02:07]} 16. gxf4 {[%clk 0:02:25]}  Rae8 {[%clk 0:01:58]} 17. Kh1 {[%clk 0:02:25]}  Re6 {[%clk 0:01:59]} 18. Rg1 {[%clk 0:02:25]}  Rg6 {[%clk 0:01:59]} 19. b4 {[%clk 0:02:24]}  a6 {[%clk 0:01:45]} 20. Rg3 {[%clk 0:02:20]}  Ne7 {[%clk 0:01:43]} 21. Qe2 {[%clk 0:02:19]}  Nf5 {[%clk 0:01:43]} 22. Rg4 {[%clk 0:02:10]}  Rd8 {[%clk 0:01:31]} 23. Rag1 {[%clk 0:02:07]}  Qd3 {[%clk 0:01:16]} 24. Qxd3 {[%clk 0:02:02]}  Rxd3 {[%clk 0:01:15]} 25. Rg5 {[%clk 0:02:02]}  Rxg5 {[%clk 0:01:15]} 26. fxg5 {[%clk 0:02:02]}  Nd6 {[%clk 0:00:59]} 27. Rg4 {[%clk 0:02:02]}  Kf8 {[%clk 0:00:52]} 28. Kg2 {[%clk 0:02:02]}  Ke7 {[%clk 0:00:50]} 29. Kf1 {[%clk 0:02:02]}  g6 {[%clk 0:00:42]} 30. Ke2 {[%clk 0:02:03]}  Rd5 {[%clk 0:00:43]} 31. a4 {[%clk 0:01:59]}  Ke6 {[%clk 0:00:39]} 32. f3 {[%clk 0:01:57]}  exf3+ {[%clk 0:00:36]} 33. Kxf3 {[%clk 0:01:58]}  Rf5+ {[%clk 0:00:22]} 34. Ke2 {[%clk 0:01:58]}  b5 {[%clk 0:00:17]} 35. a5 {[%clk 0:01:58]}  c6 {[%clk 0:00:16]} 36. h4 {[%clk 0:01:57]}  Rd5 {[%clk 0:00:12]} 37. e4 {[%clk 0:01:57]}  Re5 {[%clk 0:00:10]} 38. Bxe5 {[%clk 0:01:57]}  Kxe5 {[%clk 0:00:10]} 39. d3 {[%clk 0:01:57]}  f6 {[%clk 0:00:10]} 40. Ke3 {[%clk 0:01:57]}  f5 {[%clk 0:00:09]} 41. d4+ {[%clk 0:01:55]}  Ke6 {[%clk 0:00:09]} 42. exf5+ {[%clk 0:01:55]}  Nxf5+ {[%clk 0:00:10]} 43. Kd3 {[%clk 0:01:55]}  Kd5 {[%clk 0:00:10]} 44. Re4 {[%clk 0:01:56]}  Kd6 {[%clk 0:00:09]} 45. Re8 {[%clk 0:01:55]}  Nxh4 {[%clk 0:00:09]} 46. Ra8 {[%clk 0:01:55]}  Nf3 {[%clk 0:00:10]} 47. Rxa6 {[%clk 0:01:56]}  Nxg5 {[%clk 0:00:11]} 48. Ra7 {[%clk 0:01:56]}  Ne6 {[%clk 0:00:11]} 49. Rxh7 {[%clk 0:01:56]}  Nc7 {[%clk 0:00:12]} 50. Rg7 {[%clk 0:01:52]}  Na6 {[%clk 0:00:12]} 51. Rxg6+ {[%clk 0:01:53]}  Kd5 {[%clk 0:00:13]} 52. Rg7 {[%clk 0:01:52]}  Nxb4+ {[%clk 0:00:12]} 53. Kc3 {[%clk 0:01:52]}  Na2+ {[%clk 0:00:12]} 54. Kb3 {[%clk 0:01:52]}  Nc1+ {[%clk 0:00:12]} 55. Kb2 {[%clk 0:01:53]}  Nd3+ {[%clk 0:00:12]} 56. Kc3 {[%clk 0:01:53]}  Nf4 {[%clk 0:00:13]} 57. a6 {[%clk 0:01:54]}  b4+ {[%clk 0:00:11]} 58. Kxb4 {[%clk 0:01:53]}  Kxd4 {[%clk 0:00:12]} 59. a7 {[%clk 0:01:53]}  Nd5+ {[%clk 0:00:12]} 60. Ka5 {[%clk 0:01:54]}  c5 {[%clk 0:00:13]} 61. a8=Q {[%clk 0:01:54]}  c4 {[%clk 0:00:14]} 62. Qxd5+ {[%clk 0:01:54]}  Kc3 {[%clk 0:00:15]} 63. Rg3+ {[%clk 0:01:53]}  Kb2 {[%clk 0:00:16]} 64. Qg2+ {[%clk 0:01:53]}  Ka1 {[%clk 0:00:16]} 65. Qh2 {[%clk 0:01:54]}  c3 {[%clk 0:00:16]} 66. Rg1# {[%clk 0:01:55]} 1-0


[Site "https://www.chess.com"]

[Event "Titled Tuesday Blitz March 07 Early 2023"]
[White "Strahov, Andrej"]
[Black "Demchenko, Anton"]
[WhiteFideId "4165489"]
[BlackFideId "4160258"]
[WhiteElo "2579"]
[BlackElo "2545"]
[Result "1-0"]
[Round "04"]
[TimeControl "180+2"]
[Date "2023.03.07"]
[WhiteClock "0:00:08"]
[BlackClock "0:00:03"]

1. e4 {[%clk 0:03:00]}  c5 {[%clk 0:02:54]} 2. Nf3 {[%clk 0:03:00]}  d6 {[%clk 0:02:53]} 3. d4 {[%clk 0:03:00]}  cxd4 {[%clk 0:02:53]} 4. Nxd4 {[%clk 0:03:01]}  Nf6 {[%clk 0:02:54]} 5. Nc3 {[%clk 0:03:01]}  Nc6 {[%clk 0:02:54]} 6. Bg5 {[%clk 0:03:00]}  Bd7 {[%clk 0:02:52]} 7. Qd2 {[%clk 0:02:29]}  a6 {[%clk 0:02:51]} 8. O-O-O {[%clk 0:02:26]}  e6 {[%clk 0:02:51]} 9. f3 {[%clk 0:02:25]}  Be7 {[%clk 0:02:50]} 10. h4 {[%clk 0:02:23]}  Nxd4 {[%clk 0:02:49]} 11. Qxd4 {[%clk 0:02:22]}  Qc7 {[%clk 0:02:50]} 12. Kb1 {[%clk 0:02:22]}  b5 {[%clk 0:02:47]} 13. Qd2 {[%clk 0:02:22]}  b4 {[%clk 0:02:33]} 14. Ne2 {[%clk 0:02:22]}  a5 {[%clk 0:02:34]} 15. Nd4 {[%clk 0:02:20]}  Rb8 {[%clk 0:02:31]} 16. g4 {[%clk 0:02:19]}  h5 {[%clk 0:02:28]} 17. Bxf6 {[%clk 0:02:14]}  gxf6 {[%clk 0:02:05]} 18. gxh5 {[%clk 0:02:07]}  Rxh5 {[%clk 0:02:00]} 19. Be2 {[%clk 0:01:27]}  a4 {[%clk 0:01:50]} 20. Rdg1 {[%clk 0:01:26]}  Rh8 {[%clk 0:01:49]} 21. h5 {[%clk 0:01:25]}  Qc3 {[%clk 0:01:25]} 22. Qd1 {[%clk 0:00:58]}  Qe3 {[%clk 0:01:24]} 23. h6 {[%clk 0:00:47]}  Rxh6 {[%clk 0:00:57]} 24. Rg8+ {[%clk 0:00:46]}  Bf8 {[%clk 0:00:58]} 25. Re1 {[%clk 0:00:28]}  Qf4 {[%clk 0:00:51]} 26. Bc4 {[%clk 0:00:23]}  Rh2 {[%clk 0:00:14]} 27. Nf5 {[%clk 0:00:08]}  Qd2 {[%clk 0:00:14]} 28. Qxd2 {[%clk 0:00:07]}  Rxd2 {[%clk 0:00:13]} 29. Ng7+ {[%clk 0:00:07]}  Ke7 {[%clk 0:00:14]} 30. Nf5+ {[%clk 0:00:08]}  exf5 {[%clk 0:00:11]} 31. exf5+ {[%clk 0:00:08]}  Kd8 {[%clk 0:00:12]} 32. Rxf8+ {[%clk 0:00:08]}  Kc7 {[%clk 0:00:13]} 33. Rxf7 {[%clk 0:00:09]}  Re8 {[%clk 0:00:12]} 34. Be6 {[%clk 0:00:07]}  Rd8 {[%clk 0:00:10]} 35. Kc1 {[%clk 0:00:08]}  Rf2 {[%clk 0:00:10]} 36. Re4 {[%clk 0:00:08]}  Kc6 {[%clk 0:00:05]} 37. Rc4+ {[%clk 0:00:08]}  Kb5 {[%clk 0:00:04]} 38. Rd4 {[%clk 0:00:07]}  Kc5 {[%clk 0:00:03]} 39. Rd5+ {[%clk 0:00:07]}  Kc6 {[%clk 0:00:03]} 40. Rd3 {[%clk 0:00:07]}  Rf1+ {[%clk 0:00:03]} 41. Kd2 {[%clk 0:00:07]}  Bxe6 {[%clk 0:00:02]} 42. fxe6 {[%clk 0:00:07]}  Re8 {[%clk 0:00:03]} 43. Re3 {[%clk 0:00:08]}  d5 {[%clk 0:00:03]} 44. Rxf6 {[%clk 0:00:08]}  Kd6 {[%clk 0:00:03]} 45. e7+ {[%clk 0:00:07]}  Kd7 {[%clk 0:00:04]} 46. Rf5 {[%clk 0:00:07]}  Rxe7 {[%clk 0:00:03]} 47. Rxd5+ {[%clk 0:00:08]}  Ke8 {[%clk 0:00:04]} 48. Rxe7+ {[%clk 0:00:08]}  Kxe7 {[%clk 0:00:05]} 49. Rd3 {[%clk 0:00:07]}  Rf2+ {[%clk 0:00:05]} 50. Kd1 {[%clk 0:00:07]}  Rf1+ {[%clk 0:00:05]} 51. Ke2 {[%clk 0:00:07]}  Ra1 {[%clk 0:00:06]} 52. Rd4 {[%clk 0:00:07]}  Rxa2 {[%clk 0:00:04]} 53. Rxb4 {[%clk 0:00:07]}  a3 {[%clk 0:00:05]} 54. bxa3 {[%clk 0:00:08]}  Rxc2+ {[%clk 0:00:06]} 55. Kd3 {[%clk 0:00:08]}  Ra2 {[%clk 0:00:07]} 56. Rb3 {[%clk 0:00:08]}  Ke6 {[%clk 0:00:07]} 57. Kc4 {[%clk 0:00:09]}  Ke5 {[%clk 0:00:06]} 58. Kc5 {[%clk 0:00:09]}  Rc2+ {[%clk 0:00:05]} 59. Kb5 {[%clk 0:00:09]}  Kd5 {[%clk 0:00:06]} 60. a4 {[%clk 0:00:09]}  Rc5+ {[%clk 0:00:06]} 61. Kb6 {[%clk 0:00:09]}  Rc6+ {[%clk 0:00:06]} 62. Kb7 {[%clk 0:00:10]}  Rh6 {[%clk 0:00:04]} 63. a5 {[%clk 0:00:10]}  Rh7+ {[%clk 0:00:05]} 64. Kb6 {[%clk 0:00:10]}  Rh6+ {[%clk 0:00:05]} 65. Kb5 {[%clk 0:00:10]}  Kd6 {[%clk 0:00:04]} 66. Rc3 {[%clk 0:00:09]}  Rh5+ {[%clk 0:00:03]} 67. Kb6 {[%clk 0:00:09]}  Rh1 {[%clk 0:00:04]} 68. Rd3+ {[%clk 0:00:09]}  Ke7 {[%clk 0:00:05]} 69. a6 {[%clk 0:00:10]}  Rb1+ {[%clk 0:00:05]} 70. Ka7 {[%clk 0:00:10]}  Ke6 {[%clk 0:00:03]} 71. Ka8 {[%clk 0:00:11]}  Ke7 {[%clk 0:00:03]} 72. a7 {[%clk 0:00:11]}  Rb2 {[%clk 0:00:03]} 73. f4 {[%clk 0:00:11]}  Rb5 {[%clk 0:00:03]} 74. Rd4 {[%clk 0:00:08]}  Ke6 {[%clk 0:00:02]} 75. Rd8 {[%clk 0:00:08]}  Ke7 {[%clk 0:00:01]} 76. Rb8 {[%clk 0:00:08]}  Ra5 {[%clk 0:00:01]} 77. Rb7+ {[%clk 0:00:08]}  Kd8 {[%clk 0:00:01]} 78. Kb8 {[%clk 0:00:05]}  Rc5 {[%clk 0:00:01]} 79. a8=Q {[%clk 0:00:06]}  Rc8+ {[%clk 0:00:02]} 80. Ka7 {[%clk 0:00:06]}  Rxa8+ {[%clk 0:00:02]} 81. Kxa8 {[%clk 0:00:07]}  Kc8 {[%clk 0:00:03]} 82. Ka7 {[%clk 0:00:08]} 1-0


[Site "https://www.chess.com"]